[Event "Masters Tournament (MTO)"]
[Site "Biel, Switzerland"]
[Date "2026.07.16"]
[Round "4.11"]
[White "Ling, Chenxuan"]
[Black "Savitha, Shri B"]
[Result "0-1"]
[TimeControl "100+30+30sec/move"]
[WhiteTitle "-"]
[BlackTitle "-"]
[WhiteFideId "30983118"]
[BlackFideId "35061887"]
[WhiteElo "2166"]
[BlackElo "2368"]

1. d4 {[%clk 01:39:19]} {[%emt 00:01:40]} d5 {[%clk 01:39:46]} {[%emt
00:01:14]} 2. c4 {[%clk 01:39:16]} {[%emt 00:00:34]} e6 {[%clk 01:40:10]}
{[%emt 00:00:05]} 3. Nc3 {[%clk 01:39:37]} {[%emt 00:00:09]} Bb4 {[%clk
01:40:36]} {[%emt 00:00:05]} 4. Nf3 {[%clk 01:37:57]} {[%emt 00:02:09]} dxc4
{[%clk 01:40:00]} {[%emt 00:01:06]} 5. e3 {[%clk 01:22:41]} {[%emt 00:15:47]}
b5 {[%clk 01:40:17]} {[%emt 00:00:13]} 6. a4 {[%clk 01:22:05]} {[%emt
00:01:06]} c6 {[%clk 01:40:40]} {[%emt 00:00:06]} 7. Bd2 {[%clk 01:21:19]}
{[%emt 00:01:16]} a5 {[%clk 01:40:48]} {[%emt 00:00:22]} 8. axb5 {[%clk
01:21:23]} {[%emt 00:00:26]} Bxc3 {[%clk 01:41:12]} {[%emt 00:00:06]} 9. Bxc3
{[%clk 01:21:49]} {[%emt 00:00:04]} cxb5 {[%clk 01:41:37]} {[%emt 00:00:05]} 10.
b3 {[%clk 01:22:14]} {[%emt 00:00:06]} Bb7 {[%clk 01:42:02]} {[%emt 00:00:05]}
11. bxc4 {[%clk 01:22:35]} {[%emt 00:00:09]} b4 {[%clk 01:42:27]} {[%emt
00:00:05]} 12. Bb2 {[%clk 01:21:34]} {[%emt 00:01:30]} Nf6 {[%clk 01:42:35]}
{[%emt 00:00:22]} 13. Bd3 {[%clk 01:21:13]} {[%emt 00:00:51]} O-O {[%clk
01:42:46]} {[%emt 00:00:19]} 14. O-O {[%clk 01:19:39]} {[%emt 00:02:03]} Nbd7
{[%clk 01:43:13]} {[%emt 00:00:04]} 15. Nd2 {[%clk 01:10:49]} {[%emt 00:09:20]}
Nc5 {[%clk 01:43:07]} {[%emt 00:00:37]} 16. Bc2 {[%clk 01:10:28]} {[%emt
00:00:50]} Nce4 {[%clk 01:42:33]} {[%emt 00:01:04]} 17. f3 {[%clk 01:01:38]}
{[%emt 00:09:21]} Nxd2 {[%clk 01:42:32]} {[%emt 00:00:30]} 18. Qxd2 {[%clk
01:02:06]} {[%emt 00:00:02]} Qe7 {[%clk 01:42:23]} {[%emt 00:00:39]} 19. Rfc1
{[%clk 00:59:15]} {[%emt 00:03:21]} Rfc8 {[%clk 01:41:13]} {[%emt 00:01:40]} 20.
Bb3 {[%clk 00:50:26]} {[%emt 00:09:20]} Nd7 {[%clk 01:35:04]} {[%emt 00:06:39]}
21. e4 {[%clk 00:41:10]} {[%emt 00:09:45]} e5 {[%clk 01:12:06]} {[%emt
00:23:28]} 22. c5 {[%clk 00:36:54]} {[%emt 00:04:46]} Bc6 {[%clk 01:00:39]}
{[%emt 00:11:57]} 23. f4 {[%clk 00:32:59]} {[%emt 00:04:26]} a4 {[%clk
00:32:44]} {[%emt 00:28:25]} 24. Bd5 {[%clk 00:30:33]} {[%emt 00:02:55]} Bxd5
{[%clk 00:27:42]} {[%emt 00:05:33]} 25. exd5 {[%clk 00:30:57]} {[%emt
00:00:05]} exf4 {[%clk 00:22:02]} {[%emt 00:06:10]} 26. Re1 {[%clk 00:26:35]}
{[%emt 00:04:52]} Qg5 {[%clk 00:21:55]} {[%emt 00:00:37]} 27. d6 {[%clk
00:26:05]} {[%emt 00:01:00]} a3 {[%clk 00:14:02]} {[%emt 00:08:24]} 28. Bc1
{[%clk 00:26:24]} {[%emt 00:00:11]} Qd5 {[%clk 00:11:36]} {[%emt 00:02:55]} 29.
Qxb4 {[%clk 00:24:30]} {[%emt 00:02:25]} Rcb8 {[%clk 00:11:24]} {[%emt
00:00:42]} 30. Qc3 {[%clk 00:21:44]} {[%emt 00:03:15]} Rb3 {[%clk 00:09:23]}
{[%emt 00:02:31]} 31. Qd2 {[%clk 00:19:34]} {[%emt 00:02:40]} g5 {[%clk
00:09:49]} {[%emt 00:00:04]} 32. Re7 {[%clk 00:17:39]} {[%emt 00:02:26]} Ra4
{[%clk 00:09:21]} {[%emt 00:00:58]} 33. Re1 {[%clk 00:07:53]} {[%emt 00:10:15]}
Rxd4 {[%clk 00:09:16]} {[%emt 00:00:35]} 34. Qc2 {[%clk 00:05:01]} {[%emt
00:03:22]} Nxc5 {[%clk 00:06:59]} {[%emt 00:02:47]} 35. d7 {[%clk 00:03:55]}
{[%emt 00:01:36]} Nxd7 {[%clk 00:07:09]} {[%emt 00:00:21]} 36. Rxa3 {[%clk
00:04:20]} {[%emt 00:00:05]} Rxa3 {[%clk 00:04:41]} {[%emt 00:02:57]} 37. Bxa3
{[%clk 00:04:48]} {[%emt 00:00:02]} Rd2 {[%clk 00:03:44]} {[%emt 00:01:27]} 38.
Qe4 {[%clk 00:03:46]} {[%emt 00:01:31]} Nf6 {[%clk 00:03:31]} {[%emt 00:00:44]}
39. Qxd5 {[%clk 00:04:06]} {[%emt 00:00:10]} Nxd5 {[%clk 00:04:00]} {[%emt
00:00:02]} 40. Bc5 {[%clk 00:04:24]} {[%emt 00:00:11]} Kg7 {[%clk 00:03:58]}
{[%emt 00:00:32]} 41. Kf1 {[%clk 00:02:30]} {[%emt 00:02:24]} Kg6 {[%clk
00:03:24]} {[%emt 00:01:04]} 42. Re2 {[%clk 00:02:48]} {[%emt 00:00:13]} Rd1+
{[%clk 00:02:34]} {[%emt 00:01:20]} 43. Re1 {[%clk 00:03:07]} {[%emt 00:00:10]}
Rd2 {[%clk 00:28:19]} {[%emt 00:04:45]} 44. Re2 {[%clk 00:33:32]} {[%emt
00:00:05]} Rd3 {[%clk 00:28:46]} {[%emt 00:00:03]} 45. Kf2 {[%clk 00:33:16]}
{[%emt 00:00:46]} Nf6 {[%clk 00:26:47]} {[%emt 00:02:29]} 46. h3 {[%clk
00:32:49]} {[%emt 00:00:57]} Kf5 {[%clk 00:27:11]} {[%emt 00:00:05]} 47. Bb4
{[%clk 00:32:57]} {[%emt 00:00:24]} Ne4+ {[%clk 00:27:35]} {[%emt 00:00:05]} 48.
Kg1 {[%clk 00:33:22]} {[%emt 00:00:05]} h5 {[%clk 00:27:06]} {[%emt 00:00:59]}
49. Be1 {[%clk 00:33:27]} {[%emt 00:00:26]} Rd1 {[%clk 00:27:17]} {[%emt
00:00:18]} 0-1

[Event "Masters Tournament (MTO)"]
[Site "Biel, Switzerland"]
[Date "2026.07.16"]
[Round "4.12"]
[White "Kudryavtsev, Eugene"]
[Black "Cherniaev, Alexander"]
[Result "0-1"]
[TimeControl "100+30+30sec/move"]
[WhiteTitle "-"]
[BlackTitle "-"]
[WhiteFideId "1315374"]
[BlackFideId "4117301"]
[WhiteElo "2146"]
[BlackElo "2275"]

1. d4 {[%clk 01:39:47]} {[%emt 00:01:12]} Nf6 {[%clk 01:39:59]} {[%emt
00:01:01]} 2. c4 {[%clk 01:40:03]} {[%emt 00:00:14]} b6 {[%clk 01:40:09]}
{[%emt 00:00:21]} 3. Nc3 {[%clk 01:39:33]} {[%emt 00:00:59]} Bb7 {[%clk
01:39:55]} {[%emt 00:00:44]} 4. Bg5 {[%clk 01:28:16]} {[%emt 00:11:47]} e6
{[%clk 01:36:38]} {[%emt 00:03:47]} 5. e3 {[%clk 01:21:42]} {[%emt 00:07:04]}
d6 {[%clk 01:33:45]} {[%emt 00:03:23]} 6. Nf3 {[%clk 01:20:19]} {[%emt
00:01:53]} Nbd7 {[%clk 01:33:26]} {[%emt 00:00:49]} 7. Be2 {[%clk 01:19:44]}
{[%emt 00:01:06]} h6 {[%clk 01:33:50]} {[%emt 00:00:05]} 8. Bxf6 {[%clk
01:13:22]} {[%emt 00:06:52]} Qxf6 {[%clk 01:29:40]} {[%emt 00:04:40]} 9. Qa4
{[%clk 01:10:09]} {[%emt 00:03:43]} Qd8 {[%clk 01:23:32]} {[%emt 00:06:38]} 10.
O-O-O {[%clk 00:58:41]} {[%emt 00:11:58]} a6 {[%clk 01:11:09]} {[%emt
00:12:54]} 11. Bd3 {[%clk 00:48:14]} {[%emt 00:10:57]} c6 {[%clk 01:09:52]}
{[%emt 00:01:46]} 12. Qc2 {[%clk 00:37:06]} {[%emt 00:11:39]} b5 {[%clk
01:06:35]} {[%emt 00:03:47]} 13. Kb1 {[%clk 00:30:19]} {[%emt 00:07:17]} Be7
{[%clk 00:57:51]} {[%emt 00:09:13]} 14. c5 {[%clk 00:24:00]} {[%emt 00:06:49]}
dxc5 {[%clk 00:56:10]} {[%emt 00:02:11]} 15. dxc5 {[%clk 00:24:22]} {[%emt
00:00:09]} Bxc5 {[%clk 00:55:45]} {[%emt 00:00:54]} 16. Ne4 {[%clk 00:23:55]}
{[%emt 00:00:57]} Be7 {[%clk 00:55:56]} {[%emt 00:00:19]} 17. Be2 {[%clk
00:14:57]} {[%emt 00:09:28]} Qc7 {[%clk 00:54:18]} {[%emt 00:02:08]} 18. Rxd7
{[%clk 00:13:36]} {[%emt 00:01:51]} Qxd7 {[%clk 00:53:44]} {[%emt 00:01:05]} 19.
Ne5 {[%clk 00:13:54]} {[%emt 00:00:12]} Qc7 {[%clk 00:53:55]} {[%emt 00:00:18]}
20. f4 {[%clk 00:13:18]} {[%emt 00:01:06]} c5 {[%clk 00:41:46]} {[%emt
00:12:40]} 21. Rd1 {[%clk 00:08:29]} {[%emt 00:05:19]} Rd8 {[%clk 00:42:14]}
{[%emt 00:00:02]} 22. Rxd8+ {[%clk 00:08:50]} Qxd8 {[%clk 00:38:16]} {[%emt
00:04:37]} 23. Nxc5 {[%clk 00:09:05]} {[%emt 00:00:14]} Bxc5 {[%clk 00:36:42]}
{[%emt 00:02:04]} 24. Qxc5 {[%clk 00:09:29]} {[%emt 00:00:07]} Qd2 {[%clk
00:17:52]} {[%emt 00:19:20]} 25. Bf3 {[%clk 00:05:28]} {[%emt 00:04:31]} Bxf3
{[%clk 00:18:06]} {[%emt 00:00:15]} 26. Qc8+ {[%clk 00:04:24]} {[%emt
00:01:35]} Qd8 {[%clk 00:18:26]} {[%emt 00:00:10]} 27. Qxd8+ {[%clk 00:04:47]}
{[%emt 00:00:07]} Kxd8 {[%clk 00:18:49]} {[%emt 00:00:06]} 28. Nxf7+ {[%clk
00:04:23]} {[%emt 00:00:54]} Ke7 {[%clk 00:19:14]} {[%emt 00:00:06]} 29. Nxh8
{[%clk 00:04:47]} {[%emt 00:00:05]} Be4+ {[%clk 00:19:40]} {[%emt 00:00:04]} 30.
Kc1 {[%clk 00:05:10]} {[%emt 00:00:08]} Kf8 {[%clk 00:20:09]} {[%emt 00:00:01]}
0-1

[Event "Masters Tournament (MTO)"]
[Site "Biel, Switzerland"]
[Date "2026.07.16"]
[Round "4.13"]
[White "Dai, Wenzhi"]
[Black "Rappazzo, Johannes"]
[Result "1-0"]
[TimeControl "100+30+30sec/move"]
[WhiteTitle "-"]
[BlackTitle "-"]
[WhiteFideId "8608369"]
[BlackFideId "1340069"]
[WhiteElo "2126"]
[BlackElo "2268"]

1. e4 {[%clk 01:39:37]} {[%emt 00:01:22]} c5 {[%clk 01:40:56]} {[%emt
00:00:04]} 2. Nf3 {[%clk 01:40:00]} {[%emt 00:00:07]} d6 {[%clk 01:41:23]}
{[%emt 00:00:04]} 3. d4 {[%clk 01:40:22]} {[%emt 00:00:07]} cxd4 {[%clk
01:41:50]} {[%emt 00:00:04]} 4. Nxd4 {[%clk 01:40:46]} {[%emt 00:00:06]} Nf6
{[%clk 01:42:17]} {[%emt 00:00:03]} 5. Nc3 {[%clk 01:41:07]} {[%emt 00:00:09]}
a6 {[%clk 01:42:44]} {[%emt 00:00:03]} 6. f3 {[%clk 01:41:29]} {[%emt
00:00:07]} e5 {[%clk 01:43:07]} {[%emt 00:00:08]} 7. Nb3 {[%clk 01:41:43]}
{[%emt 00:00:15]} Be6 {[%clk 01:43:31]} {[%emt 00:00:06]} 8. Be3 {[%clk
01:42:07]} {[%emt 00:00:06]} h5 {[%clk 01:43:53]} {[%emt 00:00:09]} 9. Qd2
{[%clk 01:42:32]} {[%emt 00:00:05]} Nbd7 {[%clk 01:44:15]} {[%emt 00:00:07]} 10.
O-O-O {[%clk 01:42:51]} {[%emt 00:00:11]} Rc8 {[%clk 01:44:23]} {[%emt
00:00:22]} 11. Kb1 {[%clk 01:43:12]} {[%emt 00:00:09]} Be7 {[%clk 01:44:40]}
{[%emt 00:00:14]} 12. Bd3 {[%clk 01:43:07]} {[%emt 00:00:34]} b5 {[%clk
01:43:35]} {[%emt 00:01:35]} 13. h3 {[%clk 01:42:55]} {[%emt 00:00:42]} Nb6
{[%clk 01:43:02]} {[%emt 00:01:04]} 14. Qf2 {[%clk 01:37:56]} {[%emt 00:05:28]}
Nfd7 {[%clk 01:39:49]} {[%emt 00:03:44]} 15. Qd2 {[%clk 01:06:19]} {[%emt
00:32:07]} Qc7 {[%clk 01:07:30]} {[%emt 00:32:49]} 16. f4 {[%clk 00:58:39]}
{[%emt 00:08:09]} Nf6 {[%clk 00:43:59]} {[%emt 00:24:01]} 17. fxe5 {[%clk
00:44:02]} {[%emt 00:15:08]} dxe5 {[%clk 00:44:20]} {[%emt 00:00:09]} 18. Bxb6
{[%clk 00:44:20]} {[%emt 00:00:12]} Qxb6 {[%clk 00:44:45]} {[%emt 00:00:05]} 19.
Nd5 {[%clk 00:44:16]} {[%emt 00:00:34]} Nxd5 {[%clk 00:42:52]} {[%emt
00:02:23]} 20. exd5 {[%clk 00:43:07]} {[%emt 00:01:39]} Bxd5 {[%clk 00:41:30]}
{[%emt 00:01:52]} 21. Bxb5+ {[%clk 00:42:45]} {[%emt 00:00:52]} Qxb5 {[%clk
00:28:27]} {[%emt 00:13:33]} 22. Qxd5 {[%clk 00:42:55]} {[%emt 00:00:18]} Qxd5
{[%clk 00:19:20]} {[%emt 00:09:39]} 23. Rxd5 {[%clk 00:43:11]} {[%emt
00:00:14]} f6 {[%clk 00:19:45]} {[%emt 00:00:05]} 24. Rf1 {[%clk 00:39:58]}
{[%emt 00:03:43]} O-O {[%clk 00:17:13]} {[%emt 00:03:01]} 25. Nd2 {[%clk
00:34:52]} {[%emt 00:05:35]} Rfd8 {[%clk 00:16:14]} {[%emt 00:01:30]} 26. Rxd8+
{[%clk 00:34:30]} {[%emt 00:00:53]} Rxd8 {[%clk 00:16:38]} {[%emt 00:00:06]} 27.
Kc1 {[%clk 00:34:29]} {[%emt 00:00:30]} Bc5 {[%clk 00:15:45]} {[%emt 00:01:23]}
28. Re1 {[%clk 00:33:49]} {[%emt 00:01:10]} Kf7 {[%clk 00:10:53]} {[%emt
00:05:22]} 29. a3 {[%clk 00:28:31]} {[%emt 00:05:48]} Ke6 {[%clk 00:09:09]}
{[%emt 00:02:14]} 30. c4 {[%clk 00:19:44]} {[%emt 00:09:17]} f5 {[%clk
00:05:48]} {[%emt 00:03:52]} 31. b4 {[%clk 00:17:29]} {[%emt 00:02:45]} Be7
{[%clk 00:06:08]} {[%emt 00:00:09]} 32. Kc2 {[%clk 00:17:37]} {[%emt 00:00:22]}
e4 {[%clk 00:05:27]} {[%emt 00:01:11]} 33. Re2 {[%clk 00:15:33]} {[%emt
00:02:34]} Ke5 {[%clk 00:03:55]} {[%emt 00:02:03]} 34. c5 {[%clk 00:09:49]}
{[%emt 00:06:14]} Rd3 {[%clk 00:03:56]} {[%emt 00:00:28]} 35. c6 {[%clk
00:03:02]} {[%emt 00:07:18]} Bd8 {[%clk 00:02:47]} {[%emt 00:01:39]} 36. Nc4+
{[%clk 00:02:10]} {[%emt 00:01:22]} Kd4 {[%clk 00:01:54]} {[%emt 00:01:22]} 37.
Nd6 {[%clk 00:02:16]} {[%emt 00:00:24]} Rc3+ {[%clk 00:01:00]} {[%emt
00:01:24]} 38. Kb2 {[%clk 00:02:34]} {[%emt 00:00:13]} Rxc6 {[%clk 00:01:24]}
{[%emt 00:00:06]} 39. Nxf5+ {[%clk 00:02:51]} {[%emt 00:00:12]} Ke5 {[%clk
00:01:40]} {[%emt 00:00:14]} 40. Ng3 {[%clk 00:02:33]} {[%emt 00:00:48]} Rc4
{[%clk 00:00:37]} {[%emt 00:01:34]} 41. Nxh5 {[%clk 00:01:27]} {[%emt
00:01:35]} Kd4 {[%clk 00:27:02]} {[%emt 00:04:04]} 42. Rd2+ {[%clk 00:31:20]}
{[%emt 00:00:38]} 1-0

[Event "Masters Tournament (MTO)"]
[Site "Biel, Switzerland"]
[Date "2026.07.16"]
[Round "4.14"]
[White "Nguyen, Thi Mai Hung"]
[Black "Angst, Oliver"]
[Result "1-0"]
[TimeControl "100+30+30sec/move"]
[WhiteTitle "-"]
[BlackTitle "-"]
[WhiteFideId "12401676"]
[BlackFideId "1334069"]
[WhiteElo "2260"]
[BlackElo "2121"]

1. d4 {[%clk 01:40:57]} {[%emt 00:00:02]} d5 {[%clk 01:33:28]} {[%emt
00:07:32]} 2. c4 {[%clk 01:40:22]} {[%emt 00:01:06]} c6 {[%clk 01:33:03]}
{[%emt 00:00:55]} 3. Nf3 {[%clk 01:40:34]} {[%emt 00:00:18]} Nf6 {[%clk
01:33:20]} {[%emt 00:00:12]} 4. Nc3 {[%clk 01:40:46]} {[%emt 00:00:18]} e6
{[%clk 01:33:43]} {[%emt 00:00:07]} 5. e3 {[%clk 01:40:37]} {[%emt 00:00:39]}
Nbd7 {[%clk 01:33:54]} {[%emt 00:00:19]} 6. Qc2 {[%clk 01:37:47]} {[%emt
00:03:20]} Bd6 {[%clk 01:32:17]} {[%emt 00:02:06]} 7. Bd3 {[%clk 01:37:22]}
{[%emt 00:00:56]} dxc4 {[%clk 01:29:14]} {[%emt 00:03:34]} 8. Bxc4 {[%clk
01:37:44]} {[%emt 00:00:07]} b5 {[%clk 01:29:34]} {[%emt 00:00:10]} 9. Bd3
{[%clk 01:37:59]} {[%emt 00:00:15]} Bb7 {[%clk 01:29:53]} {[%emt 00:00:11]} 10.
O-O {[%clk 01:38:17]} {[%emt 00:00:13]} O-O {[%clk 01:28:25]} {[%emt 00:01:57]}
11. e4 {[%clk 01:38:35]} {[%emt 00:00:12]} e5 {[%clk 01:28:14]} {[%emt
00:00:41]} 12. Bg5 {[%clk 01:34:56]} {[%emt 00:04:08]} h6 {[%clk 01:02:21]}
{[%emt 00:26:24]} 13. Bh4 {[%clk 01:32:41]} {[%emt 00:02:45]} Qe7 {[%clk
00:55:21]} {[%emt 00:07:29]} 14. dxe5 {[%clk 01:23:04]} {[%emt 00:10:08]} Nxe5
{[%clk 00:51:52]} {[%emt 00:03:58]} 15. Nxe5 {[%clk 01:22:51]} {[%emt
00:00:44]} Bxe5 {[%clk 00:36:25]} {[%emt 00:15:57]} 16. f4 {[%clk 01:21:11]}
{[%emt 00:02:10]} Qc5+ {[%clk 00:35:35]} {[%emt 00:01:19]} 17. Kh1 {[%clk
01:17:36]} {[%emt 00:04:06]} Bxc3 {[%clk 00:32:00]} {[%emt 00:04:05]} 18. bxc3
{[%clk 01:16:17]} {[%emt 00:01:50]} Ng4 {[%clk 00:31:07]} {[%emt 00:01:22]} 19.
Rae1 {[%clk 01:09:53]} {[%emt 00:06:54]} Nxh2 {[%clk 00:10:49]} {[%emt
00:20:48]} 20. Kxh2 {[%clk 01:08:23]} {[%emt 00:02:00]} Qh5 {[%clk 00:11:15]}
{[%emt 00:00:04]} 21. g3 {[%clk 01:01:37]} {[%emt 00:07:17]} g5 {[%clk
00:11:09]} {[%emt 00:00:36]} 22. fxg5 {[%clk 00:55:44]} {[%emt 00:06:23]} hxg5
{[%clk 00:11:33]} {[%emt 00:00:05]} 23. Rf5 {[%clk 00:54:48]} {[%emt 00:01:26]}
f6 {[%clk 00:11:56]} {[%emt 00:00:08]} 24. Qb3+ {[%clk 00:40:44]} {[%emt
00:14:34]} Kg7 {[%clk 00:10:46]} {[%emt 00:01:39]} 25. e5 {[%clk 00:40:24]}
{[%emt 00:00:50]} c5 {[%clk 00:06:03]} {[%emt 00:05:13]} 26. exf6+ {[%clk
00:39:53]} {[%emt 00:01:02]} Rxf6 {[%clk 00:04:02]} {[%emt 00:02:31]} 27. Re7+
{[%clk 00:39:17]} {[%emt 00:01:06]} Kh8 {[%clk 00:01:42]} {[%emt 00:02:49]} 28.
Rxf6 {[%clk 00:39:32]} {[%emt 00:00:15]} c4 {[%clk 00:01:58]} {[%emt 00:00:15]}
29. Qxb5 {[%clk 00:38:08]} {[%emt 00:01:54]} Qd1 {[%clk 00:00:48]} {[%emt
00:01:39]} 30. Rh6+ {[%clk 00:38:04]} {[%emt 00:00:34]} Kg8 {[%clk 00:01:13]}
{[%emt 00:00:06]} 31. Qxg5+ {[%clk 00:38:24]} {[%emt 00:00:10]} 1-0